[Event "Arona Festival 2024"]
[Site "Arona Tenerife"]
[Date "2024.06.29"]
[Round "9.9"]
[White "Goutham Krishna H"]
[Black "Pantsulaia, Levan"]
[Result "1/2-1/2"]
[ECO "A40"]
[WhiteElo "2324"]
[BlackElo "2535"]
[Annotator "TA"]
[PlyCount "89"]
[EventDate "2024.06.20"]
[EventType "swiss"]
[EventCountry "ESP"]
[SourceTitle "playchess.com"]
[Source "ChessBase"]
[SourceQuality "1"]
[TimeControl "5400+30"]

{[%evp 21,89,34,48,16,17,22,31,13,69,48,47,47,54,56,58,45,49,42,44,40,71,0,0,0,8,7,0,0,0,-30,14,14,14,0,0,0,0,-36,7,0,0,-34,0,0,-1,-9,-8,-25,-8,-12,0,-53,-44,-100,-100,-145,-110,-124,-63,-97,-8,-8,0,0,0,0,0,0,0,0]} 1. Nf3 {[%emt 0:01:19]} c5 {[%emt 0:00:49]} 2. c4 {[%emt 0:00:09]} g6 {[%emt 0:03:24]} 3. d4 {[%emt 0:00:06]} Bg7 {[%emt 0:00:05]} 4. e4 {[%emt 0:00:06]} Nc6 {[%emt 0:08:07]} 5. d5 {[%emt 0:00:02]} Nd4 {[%emt 0:00:08]} 6. Nxd4 {[%emt 0:00:06]} cxd4 {[%emt 0:00:06]} 7. Nd2 {[%emt 0:08:52] A40: Unusual replies to 1 d4.} d6 {[%emt 0:17:08]} 8. Nb3 {[%emt 0:00:59]} Nf6 $146 {[%emt 0:07:08]} ({Predecessor:} 8... Qb6 9. a4 a5 10. c5 dxc5 11. Bb5+ Bd7 12. Bxd7+ Kxd7 13. Nd2 Nf6 14. O-O Rhd8 {1-0 Dimitrov,R (2494)-Enchev,I (2470) BUL-ch 80th Pleven 2016 (4)}) 9. Qxd4 {[%emt 0:01:06]} O-O {[%emt 0:00:09]} 10. Be2 {[%emt 0:01:09]} e6 {[%emt 0:02:14]} 11. Qd3 {[%emt 0:00:06]} exd5 {[%emt 0:07:06]} 12. exd5 {[%emt 0:11:35]} Re8 {[%emt 0:01:18]} 13. O-O {[%emt 0:00:17]} Bg4 {[%emt 0:00:28]} 14. Be3 {[%emt 0:06:38]} Qd7 {[%emt 0:03:59]} ({Better is} 14... b5 $11) 15. Rfe1 {[%emt 0:13:08]} Bxe2 {[%emt 0:03:35]} 16. Rxe2 {[%emt 0:00:02]} Ng4 {[%emt 0:00:09]} 17. Bd4 {[%emt 0:05:35]} Rxe2 {[%emt 0:03:32]} 18. Qxe2 {[%emt 0:00:02]} Re8 {[%emt 0:00:07]} 19. Qd2 {[%emt 0:12:56]} Ne5 $1 {[%emt 0:01:37]} 20. Qc3 {[%emt 0:06:58]} (20. Bxa7 Nxc4 21. Qb4 Nxb2 $15) 20... Qf5 {[%emt 0:03:41]} 21. Re1 {[%emt 0:03:20]} (21. Bxa7 Nc6 22. Nd4 (22. Bd4 $2 Nxd4 23. Nxd4 Qe4 $19) 22... Nxa7 23. Nxf5 Bxc3 24. Nxd6 Bxb2 $17) (21. Rd1 $16) 21... Rc8 $1 $11 {[%emt 0:01:58]} 22. Nd2 {[%emt 0:03:47]} (22. Bxa7 $2 Nd3 (22... Nxc4 23. Nd4 $11) 23. Qa5 Nxe1 (23... Bxb2 24. Rf1 $15) 24. Qxe1 Bxb2 $19) 22... Nd3 {[%emt 0:07:35]} 23. Re4 {[%emt 0:07:26]} Nxf2 $1 {[%emt 0:03:39]} 24. Re1 $1 {[%emt 0:00:15]} Ng4 $1 {[%emt 0:07:13]} 25. h3 {[%emt 0:00:58]} Ne5 {[%emt 0:05:58]} (25... Qf4 $5 26. Nf3 Bxd4+ 27. Qxd4 Qxd4+ (27... Rxc4 28. Re8#) 28. Nxd4 Rxc4 $11) 26. b3 {[%emt 0:00:18]} Qd3 {[%emt 0:01:13]} (26... Qf4 {is interesting.} 27. Rf1 Qg5 28. Nf3 Nxf3+ 29. Rxf3 Bxd4+ 30. Qxd4 Re8) 27. Re3 {[%emt 0:01:52]} Qxc3 {[%emt 0:00:15]} 28. Bxc3 {[%emt 0:00:15]} f5 {[%emt 0:00:39]} 29. Kf1 {[%emt 0:05:30]} Kf7 {[%emt 0:01:25]} 30. Nf3 {[%emt 0:01:45]} Nxf3 {[%emt 0:00:22]} 31. gxf3 {[%emt 0:00:57]} f4 {[%emt 0:01:33]} 32. Rd3 {[%emt 0:00:04]} Bxc3 {[%emt 0:00:20]} 33. Rxc3 {[%emt 0:00:02]} Kf6 {[%emt 0:00:14]} 34. Rd3 {[%emt 0:01:14]} Re8 {[%emt 0:01:52]} 35. Kf2 {[%emt 0:00:34]} Kg5 {[%emt 0:02:15]} 36. b4 {[%emt 0:03:21]} ({White should try} 36. Rd2 $11) 36... b6 $15 {[%emt 0:00:07]} 37. Ra3 {[%emt 0:01:34] [#]} ({White should play} 37. a3 $15) 37... Re7 $1 $17 {[%emt 0:01:02]} 38. c5 {[%emt 0:00:34]} bxc5 {[%emt 0:00:35]} ({Resist} 38... dxc5 39. bxc5 bxc5 40. Ra5 $15) 39. bxc5 {[%emt 0:00:02]} dxc5 {[%emt 0:00:11]} 40. Ra5 {[%emt 0:00:02]} Rb7 {[%emt 0:03:43]} (40... Re5 $17 41. d6 Rd5 42. Rxa7 Rxd6 43. Rxh7 Rd2+ 44. Kf1 Kf6 (44... Rxa2 45. h4+ Kf6 46. h5 $11)) 41. Rxc5 $11 {[%emt 0:00:05]} Rb2+ {[%emt 0:00:04]} 42. Ke1 {[%emt 0:00:10]} Kf6 {[%emt 0:01:26]} (42... Rxa2 $2 {loses.} 43. d6+ Kf6 44. Rd5 Ra1+ 45. Kd2 $18) 43. Ra5 {[%emt 0:00:25]} Rh2 {[%emt 0:00:54]} 44. d6 {[%emt 0:01:33]} Ke6 {[%emt 0:00:17]} 45. Rxa7 {[%emt 0:00:56]} 1/2-1/2

[Event "Arona Festival 2024"]
[Site "Arona Tenerife"]
[Date "2024.06.30"]
[Round "10.1"]
[White "Zhao, Yuanhe"]
[Black "Xue, Haowen"]
[Result "1/2-1/2"]
[ECO "A13"]
[WhiteElo "2463"]
[BlackElo "2452"]
[Annotator "TA"]
[PlyCount "53"]
[EventDate "2024.06.20"]
[EventType "swiss"]
[EventCountry "ESP"]
[SourceTitle "playchess.com"]
[Source "ChessBase"]
[SourceQuality "1"]
[TimeControl "5400+30"]

{[%evp 14,53,0,0,0,8,0,2,6,0,4,0,11,0,17,8,2,4,10,2,27,51,31,30,54,0,0,7,0,10,34,36,20,21,34,37,32,27,23,0,72,12]} 1. c4 {[%emt 0:00:05]} e6 {[%emt 0:00:10]} 2. Nf3 {[%emt 0:00:06]} Nf6 {[%emt 0:00:13]} 3. e3 {[%emt 0:00:11]} b6 {[%emt 0:00:44]} 4. b3 {[%emt 0:00:26]} Bb7 {[%emt 0:00:13]} 5. Bb2 {[%emt 0:00:07]} Be7 {[%emt 0:00:54]} 6. Be2 {[%emt 0:00:21]} O-O {[%emt 0:00:57]} 7. O-O {[%emt 0:00:05]} d5 {[%emt 0:01:50]} 8. d4 {[%emt 0:00:17]} dxc4 {[%emt 0:03:32]} 9. Bxc4 {[%emt 0:00:06]} Nbd7 {[%emt 0:06:27]} 10. Qe2 {[%emt 0:00:49]} a6 {[%emt 0:04:02] The position is equal.} 11. a4 {[%emt 0:01:40]} c5 {[%emt 0:02:02]} 12. Rd1 {[%emt 0:00:42]} cxd4 13. Nxd4 {[%emt 0:02:06]} Qc7 {[%emt 0:15:40]} 14. Nd2 {[%emt 0:00:31]} Ne5 {[%emt 0:03:36]} 15. Rac1 {[%emt 0:04:04][%cal Od4e6] [#] aiming for Nxe6!} Qb8 {[%emt 0:00:25]} 16. N4f3 {[%emt 0:10:46]} Nfd7 {[%emt 0:10:03]} 17. Nxe5 {[%emt 0:07:11]} Nxe5 {[%emt 0:00:02]} 18. f4 {[%emt 0:03:14]} Ng6 {[%emt 0:07:49]} 19. Nf3 {[%emt 0:01:45]} (19. g3 $14) 19... b5 $11 {[%emt 0:12:31] And now ...Bxf3 would win.} 20. Bd3 {[%emt 0:04:08]} bxa4 {[%emt 0:02:54]} 21. bxa4 {[%emt 0:01:24]} Rd8 {[%emt 0:04:29]} 22. Bd4 {[%emt 0:06:04]} (22. Ne5 {feels hotter.} a5 23. Bd4 Rxd4 24. exd4 Nxf4 25. Qf2) 22... Bf6 {[%emt 0:00:47]} 23. Bxf6 {[%emt 0:03:30]} gxf6 {[%emt 0:00:03]} 24. Nd4 {[%emt 0:01:18]} f5 {[%emt 0:01:49][%cal Og6f4]} 25. Qf2 {[%emt 0:01:43]} Qd6 {[%emt 0:03:28]} 26. h4 {[%emt 0:50:51]} Nxf4 {[#]} 27. Nxf5 {Weighted Error Value: White=0.05 (flawless) /Black=0.11 (very precise) .  Mistake:       	White=2     	Black=1      OK:         	White=11    	Black=9} (27. Bxf5 $1 $16 exf5 28. Nxf5 Nh3+ (28... Qxd1+ $2 {too greedy.} 29. Rxd1 Rxd1+ 30. Kh2 $18) 29. gxh3) 1/2-1/2

[Event "Arona Festival 2024"]
[Site "Arona Tenerife"]
[Date "2024.06.30"]
[Round "10.2"]
[White "Sosa, Tomas"]
[Black "Kazakouski, Valery"]
[Result "1/2-1/2"]
[ECO "B53"]
[WhiteElo "2535"]
[BlackElo "2603"]
[Annotator "RC"]
[PlyCount "124"]
[EventDate "2024.06.20"]
[EventType "swiss"]
[EventCountry "ESP"]
[SourceTitle "playchess.com"]
[Source "ChessBase"]
[SourceQuality "1"]
[TimeControl "5400+30"]

1. e4 {[%emt 0:02:29]} c5 {[%emt 0:00:07]} 2. Nf3 {[%emt 0:00:15]} d6 {[%emt 0:00:08]} 3. d4 {[%emt 0:01:19]} cxd4 {[%emt 0:00:09]} 4. Qxd4 {[%emt 0:00:07]} Nf6 {[%emt 0:01:06]} 5. Bg5 {[%emt 0:00:22]} Nc6 {[%emt 0:05:43]} 6. Bb5 {[%emt 0:03:42]} e5 {[%emt 0:04:46]} 7. Qd3 {[%emt 0:05:08]} a6 {[%emt 0:06:55]} 8. Bxc6+ bxc6 {[%emt 0:00:09]} 9. O-O {[%emt 0:01:56]} h6 {[%emt 0:06:01]} 10. Bxf6 Qxf6 {[%emt 0:00:09]} 11. Qc3 {[%emt 0:03:59]} Bb7 {[%emt 0:11:25]} 12. Nbd2 {[%emt 0:02:56]} Be7 {[%emt 0:01:18]} 13. Nc4 {[%emt 0:04:56]} Rb8 {[%emt 0:04:04]} 14. Rad1 {[%emt 0:20:41]} O-O {[%emt 0:09:58]} 15. Rfe1 {[%emt 0:01:36]} Ba8 {[%emt 0:09:45]} 16. a3 {[%emt 0:00:33]} Qg6 {[%emt 0:03:27]} 17. Qd3 {[%emt 0:12:27]} Qe6 {[%emt 0:08:05]} 18. b3 {[%emt 0:01:13]} g6 {[%emt 0:00:32]} 19. Qe3 {[%emt 0:01:31]} Kg7 {[%emt 0:00:57]} 20. Qa7 {[%emt 0:01:56]} c5 {[%emt 0:05:57]} 21. Qxa6 {[%emt 0:05:08]} Bb7 {[%emt 0:03:50]} 22. Qa7 {[%emt 0:01:46]} Bc6 {[%emt 0:01:08]} 23. Qa5 {[%emt 0:03:22]} Ra8 {[%emt 0:01:26]} 24. Qc3 {[%emt 0:03:03]} f5 {[%emt 0:00:27]} 25. Nfd2 {[%emt 0:06:07]} fxe4 {[%emt 0:00:39]} 26. Nxe4 {[%emt 0:00:58]} Rad8 {[%emt 0:00:31]} 27. f3 {[%emt 0:02:42]} Rf5 {[%emt 0:01:12]} 28. Ne3 {[%emt 0:01:20]} Rf4 {[%emt 0:01:40]} 29. Nc4 {[%emt 0:02:23]} Ba8 {[%emt 0:04:23]} 30. Qe3 {[%emt 0:02:59]} Rff8 {[%emt 0:01:19]} 31. Nc3 {[%emt 0:02:34]} Bb7 {[%emt 0:04:54]} 32. Qd3 {[%emt 0:01:27]} Rf4 {[%emt 0:00:54]} 33. Qe2 {[%emt 0:02:21]} Rdf8 {[%emt 0:01:05]} 34. Rd3 {[%emt 0:00:11]} g5 {[%emt 0:00:39]} 35. h3 {[%emt 0:01:29]} h5 {[%emt 0:00:11]} 36. Ne3 {[%emt 0:01:03]} Rd4 {[%emt 0:00:38]} 37. Ne4 {[%emt 0:01:07]} d5 {[%emt 0:00:24]} 38. Nf2 {[%emt 0:00:56]} e4 {[%emt 0:01:09]} 39. fxe4 {[%emt 0:00:01]} dxe4 {[%emt 0:00:06]} 40. Nc4 {[%emt 0:00:35]} Rf4 {[%emt 0:02:15]} 41. Re3 {[%emt 0:00:26]} g4 {[%emt 0:00:52]} 42. hxg4 {[%emt 0:00:03]} hxg4 {[%emt 0:00:33]} 43. c3 {[%emt 0:00:17]} Rd7 {[%emt 0:00:30]} 44. Nxe4 {[%emt 0:00:48]} Qh6 {[%emt 0:00:18]} 45. Ng3 {[%emt 0:00:45]} Bg5 {[%emt 0:00:41]} 46. Re6 {[%emt 0:00:59]} Qh4 {[%emt 0:00:18]} 47. Qc2 {[%emt 0:00:39]} Bf6 {[%emt 0:00:42]} 48. Nf5+ Rxf5 {[%emt 0:00:01]} 49. Qxf5 {[%emt 0:00:53]} g3 {[%emt 0:00:20]} 50. Qxf6+ Qxf6 {[%emt 0:00:02]} 51. Rxf6 {[%emt 0:01:26]} Kxf6 {[%emt 0:00:01]} 52. Kf1 {[%emt 0:00:41]} Kf5 {[%emt 0:00:33]} 53. Re8 {[%emt 0:00:38]} Be4 {[%emt 0:01:38]} 54. Rf8+ {[%emt 0:00:38]} Kg5 {[%emt 0:00:03]} 55. Rg8+ {[%emt 0:00:34]} Kf4 {[%emt 0:00:09]} 56. Rf8+ {[%emt 0:00:01]} Kg5 {[%emt 0:00:05]} 57. Ke2 {[%emt 0:00:52]} Bxg2 {[%emt 0:00:18]} 58. Ne3 {[%emt 0:00:07]} Re7 {[%emt 0:02:02]} 59. Rg8+ {[%emt 0:00:15]} Kh4 {[%emt 0:00:02]} 60. Rh8+ {[%emt 0:00:13]} Kg5 {[%emt 0:00:01]} 61. Rg8+ {[%emt 0:00:09]} Kh4 {[%emt 0:00:04]} 62. Rh8+ {[%emt 0:01:06]} Kg5 {[%emt 0:00:13]} 1/2-1/2

[Event "Arona Festival 2024"]
[Site "Arona Tenerife"]
[Date "2024.06.30"]
[Round "10.3"]
[White "Gorshtein, Ido"]
[Black "Kantor, Gergely"]
[Result "1/2-1/2"]
[ECO "A22"]
[WhiteElo "2563"]
[BlackElo "2528"]
[Annotator "TA"]
[PlyCount "65"]
[EventDate "2024.06.20"]
[EventType "swiss"]
[EventCountry "ESP"]
[SourceTitle "playchess.com"]
[Source "ChessBase"]
[SourceQuality "1"]
[TimeControl "5400+30"]

{[%evp 11,65,0,0,0,8,0,7,8,15,14,9,7,11,0,0,0,8,2,5,-13,-3,-30,-25,-48,-32,-61,-14,-20,-21,-14,-20,-10,-14,0,0,-16,0,0,0,-10,0,-31,0,0,0,0,0,0,0,0,0,-9,-14,-4,-14,-17]} 1. c4 {[%emt 0:00:03]} e5 {[%emt 0:00:08]} 2. g3 {[%emt 0:00:05]} Nf6 {[%emt 0:00:15]} 3. Bg2 {[%emt 0:00:08]} d5 {[%emt 0:00:30]} 4. cxd5 {[%emt 0:00:09]} Nxd5 {[%emt 0:00:03]} 5. Nc3 {[%emt 0:03:44]} Nb6 {[%emt 0:00:28]} 6. d3 {[%emt 0:00:04]} Be7 {[%emt 0:01:58]} 7. a3 {[%emt 0:00:13]} a5 {[%emt 0:10:11]} 8. Be3 {[%emt 0:01:41]} O-O {[%emt 0:01:14]} 9. Rc1 {[%emt 0:02:14]} Nc6 {[%emt 0:03:27]} 10. Bxc6 bxc6 {[%emt 0:03:27]} 11. Nf3 {[%emt 0:02:15]} Nd5 {[%emt 0:04:54]} 12. Nxd5 Qxd5 {[%emt 0:01:43]} 13. Qc2 {[%emt 0:17:09]} Rb8 {[%emt 0:11:29]} 14. O-O $1 {[%emt 0:17:32]} Bg4 {[%emt 0:16:22]} 15. Kg2 {[%emt 0:12:11]} Bd6 {[%emt 0:04:03]} 16. Rfd1 {[%emt 0:03:44][%cal Oh2h3]} f6 {[%emt 0:09:24]} 17. Rd2 {[%emt 0:02:08]} Bd7 {[%emt 0:00:43]} 18. Bc5 {[%emt 0:09:37]} Rb3 {[%emt 0:03:08]} (18... Rb5 $1 $15 19. Bxd6 cxd6) 19. e4 $11 {[%emt 0:03:47]} Qe6 {[%emt 0:03:08]} 20. Qc4 {[%emt 0:01:42]} Qxc4 $1 21. Rxc4 {[%emt 0:00:10]} Rfb8 {[%emt 0:01:08]} 22. Rcc2 {[%emt 0:01:46]} Be8 {[%emt 0:03:51]} 23. Be3 {[%emt 0:01:01]} Bf7 {[%emt 0:02:55]} 24. Bc5 {[%emt 0:01:59]} Be8 {[%emt 0:01:23]} 25. Be3 {[%emt 0:00:02]} Bf7 {[%emt 0:00:14]} 26. Ng1 {[%emt 0:01:35][%cal Og1e2]} R3b7 {[%emt 0:05:37]} 27. Ne2 {[%emt 0:03:04] The position is equal.} Bb3 {[%emt 0:02:12]} 28. Rxc6 {[%emt 0:00:28]} Be6 {[%emt 0:00:19]} 29. Rcc2 {[%emt 0:00:54]} Bb3 {[%emt 0:00:05]} 30. Rc6 {[%emt 0:04:06]} Be6 {[%emt 0:00:08]} 31. b4 {[%emt 0:01:14]} axb4 {[%emt 0:00:20]} 32. axb4 {[%emt 0:00:02]} Bxb4 {[%emt 0:01:27]} 33. Rdc2 {[%emt 0:02:35] Weighted Error Value: White=0.08 (flawless) /Black=0.06 (flawless) .  Mistake:       	---       	Black=1      Inaccurate:     	White=3     	Black=1      OK:         	White=12    	Black=8      Best:        	---       	Black=2      Strong:       	White=1     	Black=1} (33. Rxe6 Bxd2 34. Bxd2 Rb2 $19) 1/2-1/2

[Event "Arona Festival 2024"]
[Site "Arona Tenerife"]
[Date "2024.06.30"]
[Round "10.4"]
[White "Royal, Shreyas"]
[Black "Socko, Bartosz"]
[Result "1-0"]
[ECO "E11"]
[WhiteElo "2483"]
[BlackElo "2556"]
[Annotator "TA"]
[PlyCount "91"]
[EventDate "2024.06.20"]
[EventType "swiss"]
[EventCountry "ESP"]
[SourceTitle "playchess.com"]
[Source "ChessBase"]
[SourceQuality "1"]
[TimeControl "5400+30"]

{[%evp 24,91,20,18,22,12,14,0,36,8,50,20,58,72,104,66,95,88,83,70,108,95,120,120,141,129,123,76,161,101,113,107,109,111,103,97,114,107,204,198,209,210,400,248,352,340,338,325,335,270,334,338,409,405,402,388,489,418,527,518,448,488,492,480,494,460,1331,1250,894,868]} 1. d4 {[%emt 0:00:03]} Nf6 {[%emt 0:00:05]} 2. c4 {[%emt 0:00:05]} e6 {[%emt 0:00:03]} 3. Nf3 {[%emt 0:00:06]} Bb4+ {[%emt 0:00:06]} 4. Nbd2 {[%emt 0:00:06]} b6 {[%emt 0:01:12]} 5. a3 {[%emt 0:00:49]} Bxd2+ {[%emt 0:00:06]} 6. Qxd2 {[%emt 0:00:05]} d5 {[%emt 0:00:45] E11: Bogo-Indian.} 7. e3 {[%emt 0:00:35]} O-O {[%emt 0:00:06]} 8. b3 {[%emt 0:00:37]} Bb7 {[%emt 0:00:42]} 9. Be2 {[%emt 0:01:33]} Nbd7 {[%emt 0:07:20]} 10. Bb2 {[%emt 0:00:20]} dxc4 {[%emt 0:01:04] Nowadays more popular than 10...c5.} 11. bxc4 {[%emt 0:06:06]} c5 {[%emt 0:00:41]} 12. O-O {[%emt 0:01:09]} Qc7 {[%emt 0:02:27]} 13. a4 $146 {[%emt 0:02:41]} ({Predecessor:} 13. Rac1 Rad8 14. Rfd1 cxd4 15. exd4 h6 16. h3 Rfe8 17. Qe3 Qc6 18. Bd3 Nf8 19. Bb1 {1-0 Van Wely,L (2657)-Timman,J (2562) NED-ch rapid 2017 (4)}) 13... Rfd8 {[%emt 0:01:52]} 14. Rfd1 {[%emt 0:03:19]} Rac8 {[%emt 0:02:06]} 15. Qc3 {[%emt 0:02:11]} cxd4 16. exd4 {[%emt 0:01:37]} (16. Nxd4 {feels hotter.} Ne4 17. Qc2 Ndc5 18. f3) 16... Nd5 {[%emt 0:10:46]} 17. Qb3 {[%emt 0:02:27]} Nf4 {[%emt 0:02:12]} 18. Bf1 {[%emt 0:00:06]} Qc6 {[%emt 0:05:04]} 19. Ne1 {[%emt 0:02:01]} (19. Nh4 {with more complications.} g5 20. Qg3 h6 21. Re1) 19... Nf6 {[%emt 0:03:58]} 20. f3 {[%emt 0:02:05]} Ne8 {[%emt 0:08:18]} 21. Nc2 {[%emt 0:16:05]} Nd6 {[%emt 0:05:01]} 22. Ne3 {[%emt 0:00:26]} h5 {[%emt 0:01:09]} 23. d5 {[%emt 0:08:25]} exd5 {[%emt 0:05:16]} 24. Nxd5 {[%emt 0:03:08]} Ng6 {[%emt 0:10:14]} 25. Qc3 {[%emt 0:02:56]} (25. Kh1 $142) 25... Ne8 {[%emt 0:00:44]} (25... Nf5 $16 26. Kh1 Qc5) 26. Re1 {[%emt 0:01:32]} ({White should play} 26. Rd4 $18) 26... Nf6 $16 {[%emt 0:07:11]} 27. Nxf6+ {[%emt 0:02:28]} Qxf6 {[%emt 0:02:27]} 28. Qxf6 {[%emt 0:00:30]} gxf6 29. Bxf6 {[%emt 0:00:00]} Rd6 {[%emt 0:00:14]} 30. Bb2 {[%emt 0:01:32]} Rd2 {[%emt 0:02:12]} (30... Ba6 $16) 31. Bc1 $18 {[%emt 0:01:05]} Rd6 {[%emt 0:03:20]} 32. a5 {[%emt 0:00:34]} Nh4 $2 {[%emt 0:06:18]} (32... f6 {was called for.} 33. Be3 Ne5) 33. Kf2 {[%emt 0:02:30]} Nf5 {[%emt 0:01:00]} (33... Ng6 {might work better.} 34. Be3 Rcc6 35. axb6 axb6) 34. axb6 {[%emt 0:00:07]} axb6 {[%emt 0:00:04]} 35. Re5 {[%emt 0:02:28]} Ng7 {[%emt 0:00:06]} 36. Be3 {[%emt 0:00:11]} h4 {[%emt 0:02:16]} 37. Rb5 {[%emt 0:03:39]} h3 {[%emt 0:00:41]} 38. g3 {[%emt 0:00:36]} (38. Rxb6 Rxb6 39. Bxb6 hxg2 $18) (38. Bxb6 hxg2 39. Kxg2 Bc6 $16) (38. gxh3 Bc6 $18) 38... Rf6 {[%emt 0:01:02]} 39. Be2 {[%emt 0:01:06]} (39. Bxh3 Rxf3+ 40. Kg1 Rxc4 $14 (40... Rxe3 41. Bxc8 Bxc8 42. Ra8 $16)) (39. Bxb6 Rxf3+ 40. Kg1 Be4 $16) 39... Rcc6 {[%emt 0:01:20]} 40. Rab1 {[%emt 0:02:16]} Nf5 {[%emt 0:00:16]} 41. Bg5 {[%emt 0:01:37]} Nd4 {[%emt 0:00:07]} 42. Bxf6 {[%emt 0:00:04]} Nxb5 {[%emt 0:00:05]} 43. Rxb5 {[%emt 0:00:03]} (43. cxb5 Rxf6 44. Rc1 Kg7 $18) 43... Rxf6 {[%emt 0:00:08]} 44. c5 {[%emt 0:00:02]} Kf8 {[%emt 0:01:14]} ({Much weaker is} 44... Ba6 45. Rxb6 Rf5 46. Rxa6 (46. Bxa6 Rxc5 47. Be2 Rc2 $18)) (44... Rc6 $142 45. Rxb6 (45. cxb6 Rc2 $18) 45... Rc7) 45. Rxb6 $18 {[%emt 0:00:37]} Bc6 {[%emt 0:00:06]} 46. f4 {[%emt 0:00:36]} 1-0

[Event "Arona Festival 2024"]
[Site "Arona Tenerife"]
[Date "2024.06.30"]
[Round "10.5"]
[White "Albornoz Cabrera, Carlos Daniel"]
[Black "David, Alberto"]
[Result "1-0"]
[ECO "B12"]
[WhiteElo "2614"]
[BlackElo "2502"]
[Annotator "TA"]
[PlyCount "44"]
[EventDate "2024.06.20"]
[EventType "swiss"]
[EventCountry "ESP"]
[SourceTitle "playchess.com"]
[Source "ChessBase"]
[SourceQuality "1"]
[TimeControl "5400+30"]

{[%evp 14,44,28,15,22,23,17,11,28,0,46,54,69,41,47,40,32,31,32,60,39,38,80,75,145,136,151,122,335,203,200,142,449]} 1. e4 {[%emt 0:00:03]} c6 {[%emt 0:00:09]} 2. d4 {[%emt 0:00:04]} d5 {[%emt 0:00:04]} 3. e5 {[%emt 0:00:02]} Bf5 {[%emt 0:00:07]} 4. Nf3 {[%emt 0:00:03]} e6 {[%emt 0:00:06]} 5. Be2 {[%emt 0:00:02]} Ne7 {[%emt 0:00:33]} 6. c3 {[%emt 0:00:06]} h6 {[%emt 0:01:06]} 7. O-O {[%emt 0:00:15]} Nd7 {[%emt 0:00:39][%cal Bb8d7,Bd7c5,Bc5e4][%mdl 32]} 8. Na3 {[%emt 0:01:22]} a6 {[%emt 0:17:30]} 9. Nc2 {[%emt 0:00:30]} c5 {[%emt 0:09:02]} 10. dxc5 Nxc5 {[%emt 0:02:52] The position is equal.} 11. Be3 {[%emt 0:02:09]} Bxc2 (11... Nd7 $11 {is superior.}) 12. Qxc2 $14 {[%emt 0:00:05]} Nf5 {[%emt 0:08:38]} 13. Bf4 {[%emt 0:04:35] White is more active.} g5 {[%emt 0:06:20]} 14. Bd2 {[%emt 0:00:50]} Bg7 {[%emt 0:15:39]} 15. Nd4 {[%emt 0:05:19]} Ne4 $1 {[%emt 0:01:11]} 16. Nxf5 {[%emt 0:07:28]} exf5 {[%emt 0:00:04]} 17. Be3 {[%emt 0:01:00] Black must now prevent f3.} f4 {[%emt 0:13:22]} 18. Bd4 $36 {[%emt 0:01:49][%mdl 2048] Strongly threatening f3. White is in control.} Qe7 {[%emt 0:01:07] [#]} ({Better is} 18... Qc7) 19. Qa4+ $1 $16 {[%emt 0:14:23]} Kf8 {[%emt 0:00:49]} 20. Rfe1 {[%emt 0:01:53] Bh5 is the strong threat.} Rd8 $2 {[%emt 0:19:22]} (20... Bxe5 $16 {was necessary.} 21. Bd3 Bf6) 21. Rad1 {[%emt 0:08:48] And now Qa5 would win.} Bxe5 {[%emt 0:01:43]} 22. Bf1 {[%emt 0:04:57] aiming for Bxe5. A strong pair of Bishops.} Kg8 $2 {[%emt 0:00:35][%mdl 8192] Weighted Error Value: White=0.21 (precise) /Black=0.38.  Loses game:     	---       	Black=2      Mistake:       	---       	Black=2      Inaccurate:     	White=2     	Black=1      OK:         	White=9     	Black=4      Best:        	---       	Black=1      Strong:       	---       	Black=1} (22... f6 $16) 1-0